fUST/lending_fUST_20250608
["ID","MTS","AMOUNT","RATE_DAILY","PERIOD"]
[364978050,1749375033358,-430.0,0.00019178,2]
[364978051,1749375033368,-440.0,0.00019178,2]
[364978052,1749375033379,-371.04285288,0.00019178,2]
[364978053,1749375033388,-440.0,0.00019178,2]
[364978054,1749375033399,-502.9,0.00019178,2]
[364978055,1749375033410,-440.0,0.00019178,2]
[364978056,1749375033420,-1154.88,0.00019178,2]
[364978057,1749375033431,-440.0,0.00019178,2]
[364978058,1749375033440,-430.0,0.00019178,2]
[364978059,1749375033451,-603.47,0.00019178,2]
[364978060,1749375033460,-440.0,0.00019178,2]
[364978061,1749375033470,-430.0,0.00019178,2]
[364978062,1749375033480,-440.0,0.00019178,2]
[364978063,1749375033490,-440.0,0.00019178,2]
[364978064,1749375033501,-532.76872918,0.00019178,2]
[364978065,1749375033511,-440.0,0.00019178,2]
[364978066,1749375033521,-561.68188595,0.00019178,2]
[364978067,1749375033532,-415.0,0.00019178,2]
[364978068,1749375033542,-440.0,0.00019178,2]
[364978069,1749375033552,-528.15264217,0.00019178,2]
[364978070,1749375033562,-440.0,0.00019178,2]
[364978071,1749375033572,-440.0,0.00019178,2]
[364978072,1749375033582,-568.53,0.00019178,2]
[364978073,1749375033592,-440.0,0.00019178,2]
[364978074,1749375033602,-440.0,0.00019178,2]
[364978075,1749375033611,-440.0,0.00019178,2]
[364978076,1749375033621,-440.0,0.00019178,2]
[364978077,1749375033632,-440.0,0.00019178,2]
[364978078,1749375033643,-400.6395,0.00019178,2]
[364978079,1749375033654,-500.79,0.00019178,2]
[364978080,1749375033665,-440.0,0.00019178,2]
[364978081,1749375033675,-440.0,0.00019178,2]
[364978082,1749375033687,-430.0,0.00019178,2]
[364978083,1749375033698,-440.0,0.00019178,2]
[364978084,1749375033709,-440.0,0.00019178,2]
[364978085,1749375033720,-440.0,0.00019178,2]
[364978086,1749375033730,-440.0,0.00019178,2]
[364978087,1749375033741,-440.0,0.00019178,2]
[364978088,1749375033751,-468.31550143,0.00019178,2]
[364978089,1749375033762,-353.62,0.00019178,2]
[364978090,1749375033772,-184.65071865,0.00019178,2]
[364978091,1749375033782,-440.0,0.00019178,2]
[364978092,1749375033792,-440.0,0.00019178,2]
[364978093,1749375033802,-440.0,0.00019178,2]
[364978094,1749375033812,-624.58,0.00019178,2]
[364978095,1749375033823,-440.0,0.00019178,2]
[364978096,1749375033834,-500.0,0.00019178,2]
[364978097,1749375033844,-500.0,0.00019178,2]
[364978098,1749375033853,-500.0,0.00019178,2]
[364978099,1749375033864,-534.31,0.00019178,2]
[364978100,1749375033874,-440.0,0.00019178,2]
[364978101,1749375033885,-440.0,0.00019178,2]
[364978102,1749375033902,-440.0,0.00019178,2]
[364978103,1749375033913,-440.0,0.00019178,2]
[364978104,1749375033923,-440.0,0.00019178,2]
[364978105,1749375033933,-440.0,0.00019178,2]
[364978106,1749375033947,-440.0,0.00019178,2]
[364978107,1749375033957,-430.0,0.00019178,2]
[364978108,1749375033968,-440.0,0.00019178,2]
[364978109,1749375033979,-440.0,0.00019178,2]
[364978110,1749375033989,-440.0,0.00019178,2]
[364978111,1749375034141,-440.0,0.00019178,2]
[364978112,1749375034152,-440.0,0.00019178,2]
[364978113,1749375034163,-440.0,0.00019178,2]
[364978114,1749375034185,-588.02,0.00019178,2]
[364978115,1749375034198,-440.71709384,0.00019178,2]
[364978116,1749375034209,-430.0,0.00019178,2]
[364978117,1749375034220,-440.0,0.00019178,2]
[364978118,1749375034231,-440.0,0.00019178,2]
[364978119,1749375034242,-1545.45,0.00019178,2]
[364978120,1749375034253,-430.0,0.00019178,2]
[364978121,1749375034264,-374.81040838,0.00019178,2]
[364978122,1749375034275,-440.0,0.00019178,2]
[364978123,1749375034285,-440.0,0.00019178,2]
[364978124,1749375034296,-440.0,0.00019178,2]
[364978125,1749375034306,-430.0,0.00019178,2]
[364978126,1749375034317,-1287.55,0.00019178,2]
[364978127,1749375034327,-440.0,0.00019178,2]
[364978128,1749375034339,-1072.69,0.00019178,2]
[364978129,1749375034349,-440.0,0.00019178,2]
[364978130,1749375034359,-477.58,0.00019178,2]
[364978131,1749375034370,-430.0,0.00019178,2]
[364978132,1749375034380,-1273.71,0.00019178,2]
[364978133,1749375034390,-440.0,0.00019178,2]
[364978134,1749375034400,-427.92,0.00019178,2]
[364978135,1749375034413,-430.0,0.00019178,2]
[364978136,1749375034424,-440.0,0.00019178,2]
[364978137,1749375034435,-440.0,0.00019178,2]
[364978138,1749375034446,-440.0,0.00019178,2]
[364978139,1749375034456,-440.0,0.00019178,2]
[364978140,1749375034467,-440.0,0.00019178,2]
[364978141,1749375034477,-573.56,0.00019178,2]
[364978142,1749375034487,-440.0,0.00019178,2]
[364978143,1749375034498,-1272.69,0.00019178,2]
[364978144,1749375034508,-440.0,0.00019178,2]
[364978145,1749375034518,-440.0,0.00019178,2]
[364978146,1749375034529,-420.0,0.00019178,2]
[364978147,1749375034539,-690.29,0.00019178,2]
[364978148,1749375034550,-440.0,0.00019178,2]
[364978149,1749375034560,-1746.71,0.00019178,2]
[364978150,1749375034570,-214.134976,0.00019178,2]
[364978151,1749375034580,-587.0,0.00019357,2]
[364978152,1749375034589,-587.0,0.00019357,2]
[364978153,1749375034599,-500.0,0.00019387,2]
[364978154,1749375034609,-500.0,0.00019387,2]
[364978155,1749375034618,-500.10828756,0.00019397,2]
[364978156,1749375034629,-182.15453462,0.00019451,2]
[364978157,1749375034639,-430.0,0.00019452,2]
[364978158,1749375034650,-273.42,0.00019452,2]
[364978159,1749375034664,-440.0,0.00019452,2]
[364978160,1749375034674,-440.0,0.00019452,2]
[364978161,1749375034684,-410.0,0.00019452,2]
[364978162,1749375034695,-440.0,0.00019452,2]
[364978163,1749375034705,-440.0,0.00019452,2]
[364978164,1749375034715,-410.0,0.00019452,2]
[364978165,1749375034727,-420.0,0.00019452,2]
[364978166,1749375034737,-422.59936706,0.00019452,2]
[364978167,1749375034747,-440.0,0.00019452,2]
[364978168,1749375034758,-433.40906392,0.00019452,2]
[364978169,1749375034768,-420.0,0.00019452,2]
[364978170,1749375034778,-440.0,0.00019452,2]
[364978171,1749375034794,-440.0,0.00019452,2]
[364978172,1749375034805,-440.0,0.00019452,2]
[364978173,1749375034816,-440.0,0.00019452,2]
[364978174,1749375034826,-440.0,0.00019452,2]
[364978175,1749375034837,-420.0,0.00019452,2]
[364978176,1749375034847,-440.0,0.00019452,2]
[364978177,1749375034857,-440.0,0.00019452,2]
[364978178,1749375034868,-324.91473207,0.00019452,2]
[364978179,1749375034878,-440.0,0.00019452,2]
[364978180,1749375034888,-445.81,0.00019452,2]
[364978181,1749375034902,-440.0,0.00019452,2]
[364978182,1749375034915,-440.0,0.00019452,2]
[364978183,1749375034925,-420.0,0.00019452,2]
[364978184,1749375034935,-1154.88,0.00019452,2]
[364978185,1749375034946,-440.0,0.00019452,2]
[364978186,1749375034956,-603.47,0.00019452,2]
[364978187,1749375034966,-440.0,0.00019452,2]
[364978188,1749375034977,-196.02551417,0.00019452,2]
[364978189,1749375034988,-440.0,0.00019452,2]
[364978190,1749375034998,-440.0,0.00019452,2]
[364978191,1749375035008,-440.0,0.00019452,2]
[364978192,1749375035019,-440.0,0.00019452,2]
[364978193,1749375035028,-440.0,0.00019452,2]
[364978194,1749375035039,-568.53,0.00019452,2]
[364978195,1749375035049,-420.0,0.00019452,2]
[364978196,1749375035058,-440.0,0.00019452,2]
[364978197,1749375035069,-440.0,0.00019452,2]
[364978198,1749375035078,-420.0,0.00019452,2]
[364978199,1749375035089,-440.0,0.00019452,2]
[364978200,1749375035099,-500.79,0.00019452,2]
[364978201,1749375035110,-430.0,0.00019452,2]
[364978202,1749375035120,-440.0,0.00019452,2]
[364978203,1749375035130,-440.0,0.00019452,2]
[364978204,1749375035140,-440.0,0.00019452,2]
[364978205,1749375035150,-200.24566591,0.00019452,2]
[364978206,1749375035163,-322.99973219,0.00019452,2]
[364978207,1749375035173,-440.0,0.00019452,2]
[364978208,1749375035183,-420.0,0.00019452,2]
[364978209,1749375035193,-624.58,0.00019452,2]
[364978210,1749375035204,-440.0,0.00019452,2]
[364978211,1749375035214,-534.31,0.00019452,2]
[364978212,1749375035224,-440.0,0.00019452,2]
[364978213,1749375035234,-258.12,0.00019452,2]
[364978214,1749375035243,-420.0,0.00019452,2]
[364978215,1749375035253,-440.0,0.00019452,2]
[364978216,1749375035263,-440.0,0.00019452,2]
[364978217,1749375035273,-440.0,0.00019452,2]
[364978218,1749375035283,-440.0,0.00019452,2]
[364978219,1749375035293,-440.0,0.00019452,2]
[364978220,1749375035303,-440.0,0.00019452,2]
[364978221,1749375035313,-440.0,0.00019452,2]
[364978222,1749375035323,-588.02,0.00019452,2]
[364978223,1749375035333,-306.52231408,0.00019452,2]
[364978224,1749375035344,-440.0,0.00019452,2]
[364978225,1749375035353,-1545.45,0.00019452,2]
[364978226,1749375035363,-440.0,0.00019452,2]
[364978227,1749375035372,-440.0,0.00019452,2]
[364978228,1749375035382,-440.0,0.00019452,2]
[364978229,1749375035392,-1287.55,0.00019452,2]
[364978230,1749375035403,-440.0,0.00019452,2]
[364978231,1749375035414,-1072.69,0.00019452,2]
[364978232,1749375035424,-440.0,0.00019452,2]
[364978233,1749375035435,-239.36961143,0.00019452,2]
[364978234,1749375035549,-238.21038857,0.00019452,2]
[364978235,1749375035560,-1273.71,0.00019452,2]
[364978236,1749375035570,-440.0,0.00019452,2]
[364978237,1749375035579,-440.0,0.00019452,2]
[364978238,1749375035589,-420.0,0.00019452,2]
[364978239,1749375035599,-204.3737852,0.00019452,2]
[364978255,1749375038191,-440.0,0.00019178,2]
[364978256,1749375038202,-410.0,0.00019178,2]
[364978257,1749375038212,-235.6262148,0.00019452,2]
[364978258,1749375038222,-440.35244279,0.00019452,2]
[364978259,1749375038232,-440.0,0.00019452,2]
[364978260,1749375038242,-573.56,0.00019452,2]
[364978261,1749375038252,-440.0,0.00019452,2]
[364978262,1749375038262,-1272.69,0.00019452,2]
[364978263,1749375038271,-440.0,0.00019452,2]
[364978264,1749375038281,-440.0,0.00019452,2]
[364978265,1749375038290,-690.29,0.00019452,2]
[364978266,1749375038301,-440.0,0.00019452,2]
[364978267,1749375038311,-1746.71,0.00019452,2]
[364978268,1749375038321,-440.0,0.00019452,2]
[364978269,1749375038330,-160.0,0.00019528,2]
[364978270,1749375038340,-423.98131849,0.00019538,2]
[364978271,1749375038351,-229.60437222,0.00019538,2]
[364978272,1749375038361,-213.05153702,0.00019538,2]
[364978273,1749375038371,-160.0,0.00019538,2]
[364978274,1749375038381,-511.28541419,0.00019584,2]
[364978275,1749375038391,-1243.4,0.00019649,2]
[364978276,1749375038401,-394.84768031,0.00019726,2]
[364978277,1749375038412,-420.0,0.00019726,2]
[364978278,1749375038422,-440.0,0.00019726,2]
[364978279,1749375038431,-440.0,0.00019726,2]
[364978280,1749375038441,-308.35494578,0.00019726,2]
[364978281,1749375038450,-430.0,0.00019726,2]
[364978282,1749375038460,-192.52,0.00019726,2]
[364978283,1749375038470,-585.79,0.00019726,2]
[364978284,1749375038481,-430.0,0.00019726,2]
[364978285,1749375038492,-440.0,0.00019726,2]
[364978286,1749375038502,-440.0,0.00019726,2]
[364978287,1749375038512,-207.64917691,0.00019726,2]
[364978288,1749375038521,-440.0,0.00019726,2]
[364978289,1749375038532,-440.0,0.00019726,2]
[364978290,1749375038542,-603.47,0.00019726,2]
[364978291,1749375038551,-440.0,0.00019726,2]
[364978292,1749375038561,-410.0,0.00019726,2]
[364978293,1749375038571,-430.0,0.00019726,2]
[364978294,1749375038581,-440.0,0.00019726,2]
[364978295,1749375038591,-440.0,0.00019726,2]
[364978296,1749375038601,-568.53,0.00019726,2]
[364978297,1749375038611,-440.0,0.00019726,2]
[364978298,1749375038622,-410.0,0.00019726,2]
[364978299,1749375038631,-440.0,0.00019726,2]
[364978300,1749375038642,-500.79,0.00019726,2]
[364978301,1749375038651,-420.0,0.00019726,2]
[364978302,1749375038664,-440.0,0.00019726,2]
[364978303,1749375038674,-440.0,0.00019726,2]
[364978304,1749375038684,-440.0,0.00019726,2]
[364978305,1749375038694,-624.58,0.00019726,2]
[364978306,1749375038704,-440.0,0.00019726,2]
[364978307,1749375038713,-534.31,0.00019726,2]
[364978308,1749375038727,-440.0,0.00019726,2]
[364978309,1749375038737,-440.0,0.00019726,2]
[364978310,1749375038747,-440.0,0.00019726,2]
[364978311,1749375038758,-440.0,0.00019726,2]
[364978312,1749375038768,-440.0,0.00019726,2]
[364978313,1749375038778,-1.24002148,0.00019726,2]
[364978314,1749375038791,-418.75997852,0.00019726,2]
[364978315,1749375038801,-410.0,0.00019726,2]
[364978316,1749375038811,-440.0,0.00019726,2]
[364978317,1749375038821,-588.02,0.00019726,2]
[364978318,1749375038831,-440.0,0.00019726,2]
[364978319,1749375038841,-1545.45,0.00019726,2]
[364978320,1749375038851,-440.0,0.00019726,2]
[364978321,1749375038862,-440.0,0.00019726,2]
[364978322,1749375038871,-440.0,0.00019726,2]
[364978323,1749375038881,-1287.55,0.00019726,2]
[364978324,1749375038891,-440.0,0.00019726,2]
[364978325,1749375038903,-1072.69,0.00019726,2]
[364978326,1749375038914,-477.58,0.00019726,2]
[364978327,1749375038924,-1273.71,0.00019726,2]
[364978328,1749375038934,-440.0,0.00019726,2]
[364978329,1749375038944,-410.0,0.00019726,2]
[364978330,1749375038954,-390.68571527,0.00019726,2]
[364978331,1749375038964,-573.56,0.00019726,2]
[364978332,1749375038975,-440.0,0.00019726,2]
[364978333,1749375038985,-1272.69,0.00019726,2]
[364978334,1749375038995,-410.0,0.00019726,2]
[364978335,1749375039005,-440.0,0.00019726,2]
[364978336,1749375039015,-690.29,0.00019726,2]
[364978337,1749375039025,-547.11625404,0.00019726,2]
[364978338,1749375039035,-1746.71,0.00019726,2]
[364978339,1749375039044,-440.0,0.00019726,2]
[364978340,1749375039054,-374.28,0.000199,14]
[364978341,1749375039064,-1000.0,0.00019935,2]
[364978342,1749375039073,-500.0,0.00019935,2]
[364978343,1749375039083,-3000.0,0.0002,2]
[364978344,1749375039092,-440.0,0.0002,2]
[364978345,1749375039102,-440.0,0.0002,2]
[364978346,1749375039111,-440.0,0.0002,2]
[364978347,1749375039120,-346.68,0.0002,2]
[364978348,1749375039130,-440.0,0.0002,2]
[364978349,1749375039139,-420.0,0.0002,2]
[364978350,1749375039149,-603.47,0.0002,2]
[364978351,1749375039159,-440.0,0.0002,2]
[364978352,1749375039169,-440.0,0.0002,2]
[364978353,1749375039178,-440.0,0.0002,2]
[364978354,1749375039188,-568.53,0.0002,2]
[364978355,1749375039198,-440.0,0.0002,2]
[364978356,1749375039207,-361.22844063,0.0002,2]
[364978357,1749375039217,-500.79,0.0002,2]
[364978358,1749375039227,-410.0,0.0002,2]
[364978359,1749375039236,-440.0,0.0002,2]
[364978360,1749375039246,-440.0,0.0002,2]
[364978361,1749375039256,-624.58,0.0002,2]
[364978362,1749375039266,-380.0,0.0002,2]
[364978363,1749375039386,-534.31,0.0002,2]
[364978364,1749375039402,-440.0,0.0002,2]
[364978365,1749375039414,-410.0,0.0002,2]
[364978366,1749375039424,-440.0,0.0002,2]
[364978367,1749375039434,-530.01,0.0002,2]
[364978368,1749375039444,-283.40367879,0.0002,2]
[364978369,1749375039455,-440.0,0.0002,2]
[364978370,1749375039465,-588.02,0.0002,2]
[364978371,1749375039475,-226.02464202,0.0002,2]
[364978372,1749375039485,-440.0,0.0002,2]
[364978373,1749375039495,-1545.45,0.0002,2]
[364978374,1749375039505,-410.0,0.0002,2]
[364978375,1749375039515,-440.0,0.0002,2]
[364978376,1749375039526,-440.0,0.0002,2]
[364978377,1749375039536,-1287.55,0.0002,2]
[364978378,1749375039548,-440.0,0.0002,2]
[364978379,1749375039558,-1072.69,0.0002,2]
[364978380,1749375039569,-477.58,0.0002,2]
[364978381,1749375039580,-1273.71,0.0002,2]
[364978382,1749375039590,-440.0,0.0002,2]
[364978383,1749375039600,-573.56,0.0002,2]
[364978384,1749375039610,-193.31754611,0.0002,2]
[364978385,1749375039621,-1272.69,0.0002,2]
[364978386,1749375039631,-466.81606275,0.0002,2]
[364978387,1749375039641,-690.29,0.0002,2]
[364978388,1749375039651,-1746.71,0.0002,2]
[364978389,1749375039664,-516.24,0.0002,2]
[364978390,1749375039674,-180.354,0.00020171,2]
[364978391,1749375039684,-324.85693,0.00020187,2]
[364978392,1749375039694,-440.0,0.00020273,2]
[364978393,1749375039703,-440.0,0.00020273,2]
[364978394,1749375039712,-351.19873853,0.00020273,2]
[364978395,1749375039722,-440.0,0.00020273,2]
[364978397,1749375039737,-603.47,0.00020273,2]
[364978398,1749375039747,-440.0,0.00020273,2]
[364978399,1749375039757,-410.0,0.00020273,2]
[364978400,1749375039767,-440.0,0.00020273,2]
[364978401,1749375039778,-568.53,0.00020273,2]
[364978402,1749375039788,-440.0,0.00020273,2]
[364978403,1749375039798,-500.79,0.00020273,2]
[364978404,1749375039809,-216.15897535,0.00020273,2]
[364978405,1749375039818,-440.0,0.00020273,2]
[364978406,1749375039828,-624.58,0.00020273,2]
[364978408,1749375039839,-534.31,0.00020273,2]
[364978409,1749375039849,-440.0,0.00020273,2]
[364978410,1749375039859,-440.0,0.00020273,2]
[364978411,1749375039870,-440.0,0.00020273,2]
[364978412,1749375039885,-588.02,0.00020273,2]
[364978413,1749375039899,-440.0,0.00020273,2]
[364978414,1749375039910,-1545.45,0.00020273,2]
[364978415,1749375039920,-283.63690168,0.00020273,2]
[364978416,1749375039930,-440.0,0.00020273,2]
[364978417,1749375039941,-1287.55,0.00020273,2]
[364978418,1749375039951,-440.0,0.00020273,2]
[364978419,1749375039962,-1072.69,0.00020273,2]
[364978420,1749375039974,-477.58,0.00020273,2]
[364978421,1749375039984,-1273.71,0.00020273,2]
[364978422,1749375039994,-440.0,0.00020273,2]
[364978423,1749375040004,-573.56,0.00020273,2]
[364978424,1749375040014,-1272.69,0.00020273,2]
[364978425,1749375040025,-690.29,0.00020273,2]
[364978426,1749375040035,-1746.71,0.00020273,2]
[364978427,1749375040045,-1500.0,0.00020483,2]
[364978428,1749375040056,-500.0,0.00020547,2]
[364978429,1749375040066,-440.0,0.00020547,2]
[364978431,1749375040076,-550.89,0.00020547,2]
[364978433,1749375040086,-420.0,0.00020547,2]
[364978434,1749375040096,-603.47,0.00020547,2]
[364978435,1749375040107,-440.0,0.00020547,2]
[364978436,1749375040117,-440.0,0.00020547,2]
[364978437,1749375040126,-568.53,0.00020547,2]
[364978438,1749375040136,-410.0,0.00020547,2]
[364978439,1749375040146,-500.79,0.00020547,2]
[364978440,1749375040156,-174.97892609,0.00020547,2]
[364978441,1749375040167,-624.58,0.00020547,2]
[364978442,1749375040177,-534.31,0.00020547,2]
[364978443,1749375040187,-440.0,0.00020547,2]
[364978444,1749375040197,-440.0,0.00020547,2]
[364978445,1749375040207,-440.0,0.00020547,2]
[364978446,1749375040216,-588.02,0.00020547,2]
[364978447,1749375040227,-440.0,0.00020547,2]
[364978448,1749375040238,-1545.45,0.00020547,2]
[364978449,1749375040247,-440.0,0.00020547,2]
[364978450,1749375040256,-1287.55,0.00020547,2]
[364978451,1749375040266,-440.0,0.00020547,2]
[364978452,1749375040275,-1072.69,0.00020547,2]
[364978453,1749375040285,-477.58,0.00020547,2]
[364978454,1749375040295,-1273.71,0.00020547,2]
[364978455,1749375040305,-440.0,0.00020547,2]
[364978456,1749375040316,-573.56,0.00020547,2]
[364978457,1749375040327,-1272.69,0.00020547,2]
[364978458,1749375040339,-690.29,0.00020547,2]
[364978459,1749375040348,-1746.71,0.00020547,2]
[364978460,1749375040359,-2486.8,0.00020584,2]
[364978461,1749375040369,-3420.6,0.00020821,2]
[364978462,1749375040382,-440.0,0.00020821,2]
[364978463,1749375040391,-603.47,0.00020821,2]
[364978464,1749375040400,-440.0,0.00020821,2]
[364978465,1749375040410,-440.0,0.00020821,2]
[364978466,1749375040419,-568.53,0.00020821,2]
[364978467,1749375040430,-500.79,0.00020821,2]
[364978468,1749375040440,-624.58,0.00020821,2]
[364978469,1749375040450,-534.31,0.00020821,2]
[364978470,1749375040460,-440.0,0.00020821,2]
[364978471,1749375040469,-528.82255246,0.00020821,2]
[364978472,1749375040479,-440.0,0.00020821,2]
[364978473,1749375040489,-588.02,0.00020821,2]
[364978474,1749375040499,-440.0,0.00020821,2]
[364978475,1749375040509,-1545.45,0.00020821,2]
[364978476,1749375040519,-440.0,0.00020821,2]
[364978477,1749375040529,-1287.55,0.00020821,2]
[364978478,1749375040540,-440.0,0.00020821,2]
[364978479,1749375040551,-1072.69,0.00020821,2]
[364978480,1749375040563,-477.58,0.00020821,2]
[364978481,1749375040573,-1273.71,0.00020821,2]
[364978482,1749375040583,-440.0,0.00020821,2]
[364978483,1749375040593,-573.56,0.00020821,2]
[364978484,1749375040603,-1272.69,0.00020821,2]
[364978485,1749375040613,-690.29,0.00020821,2]
[364978486,1749375040623,-1746.71,0.00020821,2]
[364978487,1749375040634,-1200.0,0.00020883,2]
[364978488,1749375040644,-663.44,0.000209,2]
[364978489,1749375040654,-366.54,0.000209,14]
[364978490,1749375040666,-1222.59,0.000209,2]
[364978491,1749375040676,-160.0,0.00021055,3]
[364978492,1749375040687,-440.0,0.00021095,2]
[364978493,1749375040696,-603.47,0.00021095,2]
[364978494,1749375040706,-440.0,0.00021095,2]
[364978495,1749375040716,-440.0,0.00021095,2]
[364978496,1749375040726,-568.53,0.00021095,2]
[364978497,1749375040736,-500.79,0.00021095,2]
[364978498,1749375040745,-624.58,0.00021095,2]
[364978499,1749375040755,-534.31,0.00021095,2]
[364978500,1749375040764,-440.0,0.00021095,2]
[364978501,1749375040774,-440.0,0.00021095,2]
[364978502,1749375040784,-588.02,0.00021095,2]
[364978503,1749375040794,-1545.45,0.00021095,2]
[364978504,1749375040803,-1287.55,0.00021095,2]
[364978505,1749375040813,-440.0,0.00021095,2]
[364978506,1749375040823,-1072.69,0.00021095,2]
[364978507,1749375040832,-477.58,0.00021095,2]
[364978508,1749375040842,-1273.71,0.00021095,2]
[364978509,1749375040852,-440.0,0.00021095,2]
[364978510,1749375040863,-573.56,0.00021095,2]
[364978511,1749375040874,-1272.69,0.00021095,2]
[364978512,1749375040883,-690.29,0.00021095,2]
[364978513,1749375040895,-1746.71,0.00021095,2]
[364978514,1749375040908,-823.0,0.0002116,2]
[364978515,1749375040919,-823.0,0.0002116,2]
[364978516,1749375040928,-2224.0,0.00021359,2]
[364978517,1749375040938,-783.758,0.00021359,2]
[364978518,1749375040948,-405.0,0.00021359,2]
[364978519,1749375040958,-440.0,0.00021369,2]
[364978520,1749375040968,-603.47,0.00021369,2]
[364978521,1749375040977,-440.0,0.00021369,2]
[364978522,1749375040988,-489.15734465,0.00021369,2]
[364978523,1749375040998,-568.53,0.00021369,2]
[364978524,1749375041007,-500.79,0.00021369,2]
[364978525,1749375041017,-624.58,0.00021369,2]
[364978526,1749375041027,-534.31,0.00021369,2]
[364978527,1749375041037,-440.0,0.00021369,2]
[364978528,1749375041046,-440.0,0.00021369,2]
[364978529,1749375041056,-588.02,0.00021369,2]
[364978530,1749375041066,-1545.45,0.00021369,2]
[364978531,1749375041076,-1287.55,0.00021369,2]
[364978532,1749375041086,-440.0,0.00021369,2]
[364978533,1749375041096,-1072.69,0.00021369,2]
[364978534,1749375041106,-477.58,0.00021369,2]
[364978535,1749375041116,-1273.71,0.00021369,2]
[364978536,1749375041126,-440.0,0.00021369,2]
[364978537,1749375041136,-573.56,0.00021369,2]
[364978538,1749375041146,-1272.69,0.00021369,2]
[364978539,1749375041156,-690.29,0.00021369,2]
[364978540,1749375041168,-1746.71,0.00021369,2]
[364978541,1749375041178,-500.0,0.00021447,2]
[364978542,1749375041187,-500.0,0.00021447,2]
[364978543,1749375041197,-500.0,0.00021447,2]
[364978544,1749375041207,-500.0,0.00021481,2]
[364978545,1749375041217,-3730.21,0.0002152,2]
[364978546,1749375041227,-541.27743962,0.00021524,2]
[364978547,1749375041237,-500.0,0.00021524,2]
[364978548,1749375041247,-500.0,0.00021524,2]
[364978549,1749375041256,-500.0,0.00021524,2]
[364978550,1749375041266,-500.0,0.00021524,2]
[364978551,1749375041276,-503.13190723,0.00021524,2]
[364978552,1749375041285,-500.0,0.00021524,2]
[364978553,1749375041295,-571.66149766,0.00021524,2]
[364978554,1749375041304,-500.0,0.00021594,2]
[364978555,1749375041314,-500.0,0.00021594,2]
[364978556,1749375041324,-500.0,0.00021594,2]
[364978557,1749375041334,-500.0,0.00021594,2]
[364978558,1749375041343,-600.0,0.00021594,2]
[364978559,1749375041353,-500.0,0.00021594,2]
[364978560,1749375041362,-501.14582777,0.00021594,2]
[364978561,1749375041372,-500.0,0.00021594,2]
[364978562,1749375041383,-500.0,0.00021594,2]
[364978563,1749375041392,-500.0,0.00021594,2]
[364978564,1749375041401,-510.03768667,0.00021594,2]
[364978565,1749375041412,-501.14289764,0.00021594,2]
[364978566,1749375041421,-500.0,0.00021594,2]
[364978567,1749375041430,-440.0,0.00021643,2]
[364978568,1749375041441,-603.47,0.00021643,2]